Cogmind - Beta 10.2 @@@ ROGUE MODE // 2021.07.17 @ 00:29:18 Player: MiniManul Result: Destroyed by G-50 Soldier with Heavy Laser Performance ------------- Evolutions (1) 500 Regions Visited (5) 1000 Robots Destroyed (20) 100 Value Destroyed (499) 499 Prototype IDs (0) 0 Alien Tech Used (0) 0 Bonus (60) 60 TOTAL SCORE: 2159 Bonus ------- Follower Combat Kills 60 Cogmind --------- Core Integrity 0/400 Matter 290/300 Energy 51/100 System Corruption 0% Temperature Cool (18) Movement Core (350) Ox6 Location -8/Mines Parts ------- > --- POWER (2) -------- (None) > --- PROPULSION (2) --- (None) > --- UTILITY (3) ------ Large Storage Unit > --- WEAPON (2) ------- Makeshift Hammer > --- INVENTORY (10) --- Makeshift Sensor Array Advanced Signal Interpreter Terrain Scan Processor Integration Mediator Peak State ------------ > --- POWER ------------ Light Nuclear Core > --- PROPULSION ------- Aluminum Leg Aluminum Leg > --- UTILITY ---------- Improved Heat Sink Large Storage Unit Makeshift Terrain Scanner > --- WEAPON ----------- Makeshift Hammer Katana > --- INVENTORY -------- Makeshift Sensor Array Advanced Signal Interpreter Terrain Scan Processor Integration Mediator Light Assault Rifle Light Assault Rifle Mining Laser [Rating: 21] Favorites ----------- Power Ion Engine Engine Ion Engine Power Core Light Nuclear Core Propulsion Aluminum Leg Treads Light Treads Leg Aluminum Leg Utility Improved Heat Sink Device Improved Heat Sink Storage Small Storage Unit Weapon Autogun Energy Gun Medium Laser Ballistic Gun Autogun Ballistic Cannon Flak Cannon Special Weapon Mining Laser Impact Weapon Makeshift Hammer Slashing Weapon Katana Special Melee Weapon Datajack Build | -11 -10 -9 -9 -9 -8 ------- Run | Scr Mat Mat Min Exi Min Slots Evolved 2 | . . 2 . . . Power 1 | . . 1 . . . Propulsion . | . . . . . . Utility 1 | . . 1 . . . Weapon . | . . . . . . Parts Attached 33 | 3 10 3 3 3 11 Power 3 | 2 . . . . 1 Engine 2 | 2 . . . . . Core 1 | . . . . . 1 Reactor . | . . . . . . Propulsion 7 | . 4 . 2 . 1 Treads 2 | . 2 . . . . Leg 5 | . 2 . 2 . 1 Wheel . | . . . . . . Hover . | . . . . . . Flight . | . . . . . . Utility 6 | 1 1 1 1 2 . Device 4 | . 1 1 1 1 . Storage 2 | 1 . . . 1 . Processor . | . . . . . . Hackware . | . . . . . . Protection . | . . . . . . Artifact . | . . . . . . Weapon 17 | . 5 2 . 1 9 Energy Gun 4 | . 3 . . . 1 Energy Cannon . | . . . . . . Ballistic Gun 4 | . 1 1 . . 2 Ballistic Cannon 1 | . . . . . 1 Launcher . | . . . . . . Special Weapon 3 | . . 1 . . 2 Impact Weapon 3 | . . . . 1 2 Slashing Weapon 1 | . . . . . 1 Piercing Weapon . | . . . . . . Special Melee Weapon 1 | . 1 . . . . Unidentified Prototypes . | . . . . . . Parts Lost 21 | . 8 . 1 . 12 Power 2 | . 1 . . . 1 Propulsion 6 | . 3 . . . 3 Utility 2 | . . . . . 2 Weapon 11 | . 4 . 1 . 6 Highest Loss Streak 7 | . 3 . 1 . 7 Average Slot Usage (%) 73 | . 82 32 63 74 72 Engine 3 | . 10 . . . . Treads 7 | . 20 . . . . Leg 14 | . 6 . 18 22 19 Device 16 | . 7 11 22 22 21 Storage 12 | . 14 11 11 11 11 Energy Gun 5 | . 14 . . . 1 Ballistic Gun 8 | . 6 . 11 11 8 Impact Weapon 3 | . . . . 8 2 Naked Turns . | . . . . . . Heaviest Build 28 | 9 14 11 10 24 28 Greatest Support 40 | 3 40 3 20 20 20 Greatest Overweight (x) 5 | 2 1 3 3 1 5 Average Overweight (x) . | 1 . 1 . . 1 Largest Inventory Capacity 10 | 6 6 6 6 10 10 Average Capacity 7 | 5 6 6 6 9 10 Most Carried 9 | 6 4 6 6 6 9 Average Carried 3 | 3 1 2 3 4 6 Final Capacity 10 | 6 6 6 6 10 10 Final Carried 5 | 5 1 3 3 5 4 Class Distribution -------------------- 92% | Mutant 7% | Scavenger-Mutant Dominant Class ---------------- Mutant | -10/Materials Mutant | -9/Materials Mutant | -9/Mines Mutant | -9/Exiles Scavenger-Mutant | -8/Mines Resources | -11 -10 -9 -9 -9 -8 ----------- Run | Scr Mat Mat Min Exi Min Matter Collected 668 | 223 234 . 46 10 155 Remotely . | . . . . . . Salvage Created 572 | . 381 . . 10 181 Parts 44 | . 31 . . . 13 Haulers Intercepted . | . . . . . . Recyclers Shooed . | . . . . . . Parts Field Recycled . | . . . . . . Retrieved Matter . | . . . . . . Parts Self-Destructed . | . . . . . . Prevented . | . . . . . . Kills | -11 -10 -9 -9 -9 -8 ------- Run | Scr Mat Mat Min Exi Min Combat Hostiles Destroyed 17 | . 10 . . . 7 Melee 2 | . . . . . 2 Guns 11 | . 10 . . . 1 Cannons 3 | . . . . . 3 Classes Destroyed 5 | . 4 . . . 1 Builder 1 | . 1 . . . . Watcher 2 | . 2 . . . . Swarmer 7 | . 3 . . . 4 Grunt 9 | . 7 . . . 2 Duelist 1 | . . . . . 1 Best Kill Streak 4 | . 3 . . . 4 Combat Bots Only 4 | . 3 . . . 4 Max Kills in Single Turn 1 | . 1 . . . 1 Gunslinging . | . . . . . . Exploded . | . . . . . . Melee 1 | . . . . . 1 Uniques/NPCs Destroyed . | . . . . . . Combat | -11 -10 -9 -9 -9 -8 -------- Run | Scr Mat Mat Min Exi Min Damage Taken 2262 | . 929 . 196 . 1137 Core 584 | . 171 . 29 . 384 Absorbed by Shields . | . . . . . . Core Remaining (%) 65 | 100 31 . . . . Volleys Fired 124 | . 95 . 7 . 22 Largest 2 | . 2 . 1 . 2 Hottest 100 | . 100 . 23 . 100 Shots Fired 152 | . 120 . 7 . 25 Gun 145 | . 120 . 7 . 18 Cannon 6 | . . . . . 6 Launcher . | . . . . . . Special 1 | . . . . . 1 Kinetic 82 | . 53 . 7 . 22 Thermal 68 | . 67 . . . 1 Explosive . | . . . . . . Electromagnetic 2 | . . . . . 2 Robot Hit Streak 8 | . 8 . 2 . 6 Robot Miss Streak 6 | . 6 . 2 . 5 Penetration Max . | . . . . . . Secondary Targets 2 | . 1 . . . 1 Max Gunslinging Chain 1 | . 1 . . . 1 Shots Hit Robots 119 | . 80 . 3 2 34 Core Hits 41 | . 26 . 1 1 13 Critical Hits . | . . . . . . Critical Kills . | . . . . . . Critical Parts Destroyed . | . . . . . . Melee Attacks 31 | . 3 . . 2 26 Impact 10 | . . . . 2 8 Slashing 18 | . . . . . 18 Piercing . | . . . . . . Sneak Attacks . | . . . . . . Combat Hostiles . | . . . . . . Follow-up Attacks 2 | . . . . . 2 Damage Inflicted 1917 | . 937 . 66 210 704 Guns 1109 | . 933 . 66 . 110 Cannons 82 | . . . . . 82 Explosions . | . . . . . . Melee 721 | . . . . 210 511 Ramming 5 | . 4 . . . 1 Kinetic 695 | . 451 . 66 . 178 Thermal 482 | . 482 . . . . Explosive . | . . . . . . Electromagnetic 14 | . . . . . 14 Impact 342 | . . . . 210 132 Slashing 379 | . . . . . 379 Piercing . | . . . . . . Highest Corruption . | . . . . . . Average Corruption . | . . . . . . Corruption Purged . | . . . . . . Overload Shots . | . . . . . . Overflow Damage 73 | . . . . 41 32 Projectiles . | . . . . . . Explosions . | . . . . . . Melee 73 | . . . . 41 32 Knockbacks 3 | . . . . 1 2 Impact 1 | . . . . 1 . Kinetic 2 | . . . . . 2 Secondary . | . . . . . . Self-Inflicted Damage 2 | . 2 . . . . Shots . | . . . . . . Rammed 2 | . 1 . . . 1 Targets Rammed 2 | . 1 . . . 1 Kicked . | . . . . . . Crushed . | . . . . . . Highest Temperature 323 | . 323 . . . 27 Average Temperature 111 | . 117 . . . 19 Received Heat Transfer 1026 | . 441 . 108 . 477 Effects 2 | . 2 . . . . Energy Bleed 1 | . 1 . . . . Short Circuit 1 | . 1 . . . . Siege Activations . | . . . . . . Robots Corrupted . | . . . . . . Combat Hostiles . | . . . . . . Parts Fried 2 | . . . . . 2 Impact Corruptions 2 | . . . . 1 1 Robots Melted . | . . . . . . Combat Hostiles . | . . . . . . Parts Melted 2 | . 2 . . . . Heat Transferred 1313 | . 1313 . . . . Parts Sabotaged . | . . . . . . Parts Stolen . | . . . . . . Parts Stripped . | . . . . . . Power Chain Reactions . | . . . . . . Missiles Intercepted . | . . . . . . Alert | -11 -10 -9 -9 -9 -8 ------- Run | Scr Mat Mat Min Exi Min Peak Influence 140 | . 140 55 82 . 120 Initial 25 | . . 25 21 . . Average 54 | . 48 45 79 . 70 Maximum Alert Level . | . . . . . . Low Security (%) 100 | 100 100 100 100 . 100 Level 1 . | . . . . . . Level 2 . | . . . . . . Level 3 . | . . . . . . Level 4 . | . . . . . . Level 5 . | . . . . . . High Security . | . . . . . . Max Security . | . . . . . . Squads Dispatched 3 | . 2 1 . . . Investigation 1 | . 1 . . . . Extermination . | . . . . . . Reinforcement 2 | . 1 1 . . . Assault . | . . . . . . Garrison . | . . . . . . Intercept . | . . . . . . Construction Impeded . | . . . . . . Haulers Reinforced . | . . . . . . Stealth | -11 -10 -9 -9 -9 -8 --------- Run | Scr Mat Mat Min Exi Min Distress Signals . | . . . . . . Communications Jammed . | . . . . . . Distress Signals . | . . . . . . Times Spotted 41 | . 23 3 2 . 13 Peak Tracking Total 4 | . 4 2 2 . 4 Tactical Retreats 3 | . 1 . . . 2 Traps | -11 -10 -9 -9 -9 -8 ------- Run | Scr Mat Mat Min Exi Min Traps Triggered 1 | . 1 . . . . Indirectly . | . . . . . . Trap Hack Attempts . | . . . . . . Triggered . | . . . . . . Disarmed . | . . . . . . Reprogrammed . | . . . . . . Reused . | . . . . . . Traps Extracted . | . . . . . . Installed . | . . . . . . Triggered . | . . . . . . Machines | -11 -10 -9 -9 -9 -8 ---------- Run | Scr Mat Mat Min Exi Min Machines Disabled . | . . . . . . Max in Single Turn . | . . . . . . Machines Sabotaged . | . . . . . . Garrisons Compromised . | . . . . . . Overloaded Fab Kills . | . . . . . . Fab Network Shutdowns . | . . . . . . Hacking | -11 -10 -9 -9 -9 -8 --------- Run | Scr Mat Mat Min Exi Min Machines Accessed 4 | . . . . 4 . Terminals . | . . . . . . Fabricators . | . . . . . . Repair Stations . | . . . . . . Recycling Units . | . . . . . . Scanalyzers . | . . . . . . Garrison Access . | . . . . . . Total Hacks 35 | . . . . 35 . Successful 35 | . . . . 35 . Failed . | . . . . . . Catastrophic . | . . . . . . Database Lockouts . | . . . . . . Manual . | . . . . . . Terminals . | . . . . . . Fabricators . | . . . . . . Repair Stations . | . . . . . . Recycling Units . | . . . . . . Scanalyzers . | . . . . . . Garrison Access . | . . . . . . Terminal Hacks 35 | . . . . 35 . Record 35 | . . . . 35 . Fabricator Hacks . | . . . . . . Repair Station Hacks . | . . . . . . Recycling Unit Hacks . | . . . . . . Scanalyzer . | . . . . . . Garrison Access Hacks . | . . . . . . Unauthorized Hacks . | . . . . . . Terminals . | . . . . . . Fabricators . | . . . . . . Repair Stations . | . . . . . . Recycling Units . | . . . . . . Scanalyzers . | . . . . . . Garrison Access . | . . . . . . Data Cores Recovered . | . . . . . . Used . | . . . . . . Hacking Detections . | . . . . . . Full Trace Events . | . . . . . . Feedback Events . | . . . . . . Feedback Blocked . | . . . . . . Robot Schematics Acquired . | . . . . . . Robots Built . | . . . . . . Matter . | . . . . . . Time . | . . . . . . Total Robot Build Rating . | . . . . . . Part Schematics Acquired . | . . . . . . Parts Built . | . . . . . . Matter . | . . . . . . Time . | . . . . . . Total Part Build Rating . | . . . . . . Parts Repaired . | . . . . . . Time . | . . . . . . Parts Recycled . | . . . . . . Recycled Matter . | . . . . . . Retrieved Matter . | . . . . . . Retrieved Components . | . . . . . . Parts Scanalyzed . | . . . . . . Part Schematics Acquired . | . . . . . . Parts Damaged . | . . . . . . Bothacking | -11 -10 -9 -9 -9 -8 ------------ Run | Scr Mat Mat Min Exi Min Used RIF Installer . | . . . . . . Robots Hacked 1 | . 1 . . . . Non-combat . | . . . . . . Combat 1 | . 1 . . . . Robot Hacks Applied 1 | . 1 . . . . parse_system 1 | . 1 . . . . Relay Couplers Released . | . . . . . . Robots Rewired . | . . . . . . Allies Hacked . | . . . . . . Hacks Repelled . | . . . . . . Allies | -11 -10 -9 -9 -9 -8 -------- Run | Scr Mat Mat Min Exi Min Total Allies 2 | . . . 2 . . Largest Group 2 | . . . 2 1 . Highest-Rated Group 40 | . . . 40 31 . Highest-Rated Ally 31 | . . . 31 31 . Total Orders . | . . . . . . Ally Attacks 4 | . . . 4 . . Total Damage 84 | . . . 84 . . Kills 2 | . . . 2 . . Allies Corrupted . | . . . . . . Allies Melted . | . . . . . . Intel | -11 -10 -9 -9 -9 -8 ------- Run | Scr Mat Mat Min Exi Min Robot Analysis Total . | . . . . . . Derelict Logs Recovered 1 | . . . 1 . . Drone Launches . | . . . . . . Drone Recoveries . | . . . . . . Exploration | -11 -10 -9 -9 -9 -8 ------------- Run | Scr Mat Mat Min Exi Min Turns Passed 2954 | 125 948 145 271 1055 410 Spaces Moved 1809 | 95 473 134 205 716 186 Core 239 | 95 1 134 8 . 1 Treads 357 | . 357 . . . . Legs 1213 | . 115 . 197 716 185 Wheels . | . . . . . . Hover . | . . . . . . Flight . | . . . . . . Fastest Speed 50 | 50 100 100 120 120 150 Average Speed 140 | 120 150 102 123 145 152 Slowest Speed 300 | 150 160 200 200 150 300 Overloaded Moves . | . . . . . . Propulsion Burnouts . | . . . . . . Robots Hopped . | . . . . . . Cave-ins Triggered . | . . . . . . Exploration Rate (%) 37 | 6 40 13 45 92 30 Regions Visited 5 Branch Regions 3 Pre-discovered Areas 2 | . . . 1 1 . Known Exits Taken . | . . . . . . Unknown Exits Taken 5 | 1 1 1 1 1 . Scrap Searched . | . . . . . . Spaces Dug . | . . . . . . Terrain Destroyed 1 | . . . . . 1 Melee . | . . . . . . Projectile 1 | . . . . . 1 AOE . | . . . . . . Terrain Rammed . | . . . . . . Walls Destroyed . | . . . . . . Machines Disabled . | . . . . . . Actions | -11 -10 -9 -9 -9 -8 --------- Run | Scr Mat Mat Min Exi Min Total 2041 | 106 588 142 218 729 258 Wait 2 | . . . . 1 1 Move 1805 | 94 473 133 204 715 186 Hop . | . . . . . . Pick Up 34 | 8 6 5 3 4 8 Fast Attach . | . . . . . . Attach 32 | 3 10 3 3 2 11 Detach 5 | . . . . 1 4 Swap 1 | . . . . 1 . Drop 7 | 1 1 1 1 1 2 Fire 124 | . 95 . 7 . 22 Melee 28 | . 3 . . 2 23 Ram . | . . . . . . Kick 1 | . . . . . 1 Crush . | . . . . . . Escape Stasis . | . . . . . . Rewire 2 | . . . . 2 . Trap . | . . . . . . Miscellaneous . | . . . . . . Route ------- -11/Scrapyard -10/Materials (discovered 2 exits: [*Mat] / [*Min]) -9/Materials -9/Mines -9/Exiles (discovered 2 exits: [*Min x2]) -8/Mines History --------- Turn | Location | Event 22 | -11/Scrapyard | Discovered new exit (range 15) 126 | -11/Scrapyard | Entered Materials 302 | -10/Materials | Build established: Mutant 844 | -10/Materials | Discovered new exit (range 11) 1039 | -10/Materials | Discovered new exit (range 11) 1047 | -10/Materials | Core integrity fell below 50% 1074 | -10/Materials | Entered another Materials area 1074 | -9/Materials | Evolved 2 slots: Power x1, Utility x1 1103 | -9/Materials | Lost 3 parts (2n1w) 1165 | -9/Materials | Discovered new exit (range 12) 1219 | -9/Materials | Entered Mines 1481 | -9/Mines | Deemed a non-threat by the Exiles lab entrance 1483 | -9/Mines | Discovered new exit (range 5) 1490 | -9/Mines | Entered Exiles 1490 | -9/Exiles | Found Exiles lab destroyed 1490 | -9/Exiles | Accompanied by 1 ally 1520 | -9/Exiles | Led the pair of lost Derelicts to a safe place 1530 | -9/Exiles | Discovered new exit (range 15) 1935 | -9/Exiles | Learned location of Zion (-6) 1979 | -9/Exiles | Discovered new exit (range 14) 2545 | -9/Exiles | Entered Mines 2907 | -8/Mines | Core integrity fell below 50% 2948 | -8/Mines | Core integrity fell below 20% 2955 | -8/Mines | Destroyed by G-50 Soldier with Heavy Laser Last Messages --------------- G-47 Trooper destroyed. Acquired Lgt. Nuclear Core. Acquired Aluminum Leg. Dropped Lgt. Assault Rifle. Lgt. Nuclear Core destroyed. Acquired 38 matter. Acquired 1 matter. Destroyed Aluminum Leg. Destroyed Particle Gun. Acquired 4 matter. K-01 Serf collects debris. Aluminum Leg destroyed. Lgt. Assault Rifle destroyed. Mak. Terrain Scanner destroyed. G-47 Trooper destroyed. Katana destroyed. Slammed into G-47 Trooper. Aluminum Leg destroyed. Imp. Heat Sink destroyed. Mining Laser destroyed. Map ----- +----------------------------------------------------+ | | | ?????????????????????????????????????????#???????? | | ??????????????????????????????#???????????????#??? | | ?????????????????????????????????????????????####? | | ?????????????????????????????????????????##?## ## | | ?????????????????????????????????????###??#?# # | | ????????????????????????????#??????#???????## # | | ??????????????????????????????????#??????#?## # | | ????????????????????????#????????????####### # | | ?????????????????????#??????????????## ## # | | ????????????????????#?????? #?#???## | | ??????????????????????????? ?????# | | ???????????????#?#????#???? ??#??# ### | | ???????????????????? ?????? ???#?## ##? | | ??????????????????????????? ??????## ### ## | | ??????????????????????#???? ???????#####?## ## | | ?????????????????????????? ???????##?????# ## | | ??????????????????????????? ???????#?#??#?## # | | ???????????????????????###?# ?#?#??#????#??## | | ???????????????????????t #?# #?#???????????#?## | | ???????????????????????# ### #????????????#?#?#### | | ???????????????????????# #?# #???#???##?#?????#??? | | ???????????????????????# #?# #?#??#??????#??###### | | ???????????????????????# ### #??#???????????### | | ????????????????########g;## ######?#??????## % % | | ?????????????# g%@ g ##??????## ## | | ????????????????###### ########## #??????## ### | | ????????????????????????????????# ##??#### #?? | | ????????????????????????????????# #??## ##?? | | ??????????????? ????????????????# #### ###?? | | ?????????????????????#???#??????# ##?#? | | ??????????#??????????#??????????####### ## #???? | | ??????????????????????????????????????###### ##??? | | ?????????????????????????????????????#??#??# #???# | | ??????????????????????????????????????#??#?# #??## | | ????????????????????????????#????#?????????# #??# | | ????????????????? ????????????#?#?????????## #### | | ?????????????????????????????#?????????????# | | ???????????????????????#???????????????????## ### | | ?????????????????????????????#?????#??#?????# #?# | | ??????????????????? ?????????????##??????#??# #?# | | ????????????????????????????????#???????????# #?# | | ????????????????????????????????????????????# #?# | | ????????????????????????????????????????????# #?# | | ???????????????????????????????#?#??????????# #?# | | ????????????????????????????????????????????# #?# | | ????????????????????????????????????????????? #?# | | ????????????????????????????????????????????? ??# | | ????????????????????????????????????????????? ??# | | ????????????????????????????????????????????? ??# | +----------------------------------------------------+ Best States ------------- Heat Dissipation 42 Energy Generation 14 Energy Capacity 250 Matter Stores 300 Matter Capacity 300 Sight Range 16 Terrain Scan Range 18 Terrain Scan Density 10 Evasion (%) 40 Recoil Reduction 2 Item Schematics ----------------- None Robot Schematics ------------------ None Fabricated ------------ Nothing Alien Tech Used ----------------- None Achievements -------------- None Challenges ------------ None Game ------ Seed LaserPulseGun Manual? 0 Play Time 00:20:13 Cumulative 2.9 hours Start 2021.07.17 @ 00:09:26 End 2021.07.17 @ 00:29:18 Sessions 1 Manual Loads 0 Difficulty Rogue Special Mode None Game No. 5 Rogue 5 Adventurer 0 Explorer 0 Win Type - Total 0 Types 0/0/0/0/0/0/0/0/0 Lore% 12 Gallery% 7 Achievement% 8 Wizard Run 0 Options --------- ASCII 0 Keyboard 0 Movement Numpad Keybinds 0 Fullscreen 2 Font 18/Terminus Map View 76x50 Tactical HUD 0 Map Filters NONE Filters NONE Steam 1 RUN: 54d76bff-caf6-4469-8891-19aba2d0398b